[Event "Late-Titled-Tuesday-Blitz-December-26-2023"]
[Site "Chess.com"]
[Date "2023.12.26"]
[Round "1"]
[White "Nf3c5"]
[Black "AsadliVugar"]
[Result "1-0"]
[WhiteElo "2479"]
[BlackElo "2832"]
[TimeControl "180+1"]
[EndTime "14:07:29 PST"]
[Termination "Nf3c5 won by resignation"]

1. d4 {[%clk 0:03:00.9]} 1... Nf6 {[%clk 0:02:59.3]} 2. Nf3 {[%clk 0:03:00.5]}
2... g6 {[%clk 0:02:59.8]} 3. e3 {[%clk 0:02:58]} 3... Bg7 {[%clk 0:02:59.7]} 4.
Be2 {[%clk 0:02:58.6]} 4... O-O {[%clk 0:02:59.7]} 5. O-O {[%clk 0:02:59.5]}
5... d6 {[%clk 0:02:59.5]} 6. c4 {[%clk 0:02:58.1]} 6... Nbd7 {[%clk 0:02:59.5]}
7. Nc3 {[%clk 0:02:58]} 7... e5 {[%clk 0:03:00]} 8. Qc2 {[%clk 0:02:53.4]} 8...
Re8 {[%clk 0:02:59.3]} 9. Rd1 {[%clk 0:02:53.5]} 9... e4 {[%clk 0:02:53.8]} 10.
Ng5 {[%clk 0:02:43.8]} 10... Qe7 {[%clk 0:02:50.2]} 11. f3 {[%clk 0:02:33]}
11... exf3 {[%clk 0:02:47.5]} 12. Bxf3 {[%clk 0:02:32.5]} 12... Nf8 {[%clk
0:02:35.5]} 13. Nge4 {[%clk 0:02:12.9]} 13... Nxe4 {[%clk 0:02:28.9]} 14. Bxe4
{[%clk 0:02:11.7]} 14... Ne6 {[%clk 0:02:20.9]} 15. Qf2 {[%clk 0:01:43.4]} 15...
c6 {[%clk 0:02:10.6]} 16. Bc2 {[%clk 0:01:37.1]} 16... Bd7 {[%clk 0:02:05.5]}
17. e4 {[%clk 0:01:34.5]} 17... c5 {[%clk 0:02:05.1]} 18. Nd5 {[%clk 0:01:28.7]}
18... Qd8 {[%clk 0:02:04.2]} 19. dxc5 {[%clk 0:01:22.9]} 19... dxc5 {[%clk
0:01:52.8]} 20. Be3 {[%clk 0:01:19.4]} 20... Bc6 {[%clk 0:01:36.7]} 21. Rf1
{[%clk 0:01:16.7]} 21... Rf8 {[%clk 0:01:27]} 22. Rad1 {[%clk 0:01:10]} 22...
Rc8 {[%clk 0:01:12.5]} 23. b3 {[%clk 0:01:05.8]} 23... Nd4 {[%clk 0:01:10.6]}
24. Bd3 {[%clk 0:01:05.4]} 24... Kh8 {[%clk 0:01:03.3]} 25. Kh1 {[%clk
0:01:05.3]} 25... b6 {[%clk 0:00:55.8]} 26. Qg3 {[%clk 0:01:03.5]} 26... Qd7
{[%clk 0:00:42.2]} 27. Bg5 {[%clk 0:00:56.3]} 27... Bxd5 {[%clk 0:00:34.8]} 28.
exd5 {[%clk 0:00:51.4]} 28... f5 {[%clk 0:00:32.9]} 29. Rde1 {[%clk 0:00:49.8]}
29... Rce8 {[%clk 0:00:32.5]} 30. Qh4 {[%clk 0:00:49.6]} 30... f4 {[%clk
0:00:25.5]} 31. Rxe8 {[%clk 0:00:35.6]} 31... Qxe8 {[%clk 0:00:26.4]} 32. Bxf4
{[%clk 0:00:35.9]} 32... Bf6 {[%clk 0:00:17.2]} 33. Qg3 {[%clk 0:00:31.9]} 33...
Ne2 {[%clk 0:00:15.2]} 34. Bxe2 {[%clk 0:00:26.6]} 34... Qxe2 {[%clk 0:00:16.1]}
35. Qf2 {[%clk 0:00:25.8]} 35... Qxf2 {[%clk 0:00:15.9]} 36. Rxf2 {[%clk
0:00:26.2]} 36... Kg8 {[%clk 0:00:13.3]} 37. Bh6 {[%clk 0:00:24.4]} 37... Re8
{[%clk 0:00:13.8]} 38. g3 {[%clk 0:00:24.5]} 38... Bd4 {[%clk 0:00:13.4]} 39.
Rf3 {[%clk 0:00:22.5]} 39... Bg7 {[%clk 0:00:13.7]} 40. Bxg7 {[%clk 0:00:21.8]}
40... Kxg7 {[%clk 0:00:14.6]} 41. Rd3 {[%clk 0:00:20]} 41... Kf6 {[%clk
0:00:14.5]} 42. Kg2 {[%clk 0:00:18.7]} 42... Re2+ {[%clk 0:00:14.6]} 43. Kf3
{[%clk 0:00:19.2]} 43... Re8 {[%clk 0:00:13.9]} 44. h4 {[%clk 0:00:18.4]} 44...
Rd8 {[%clk 0:00:14.8]} 45. a3 {[%clk 0:00:18.6]} 45... Ke7 {[%clk 0:00:14.9]}
46. Ke4 {[%clk 0:00:19]} 46... Kd6 {[%clk 0:00:15]} 47. Kf4 {[%clk 0:00:19.9]}
47... Re8 {[%clk 0:00:15.9]} 48. Re3 {[%clk 0:00:19.2]} 48... Re5 {[%clk
0:00:16.6]} 49. Rxe5 {[%clk 0:00:19.2]} 1-0

[Event "Late-Titled-Tuesday-Blitz-December-26-2023"]
[Site "Chess.com"]
[Date "2023.12.26"]
[Round "1"]
[White "fks_stal_mielec"]
[Black "SlipperySpeedster"]
[Result "0-1"]
[WhiteElo "2322"]
[BlackElo "2620"]
[TimeControl "180+1"]
[EndTime "14:07:29 PST"]
[Termination "SlipperySpeedster won by resignation"]

1. c4 {[%clk 0:03:00.9]} 1... e6 {[%clk 0:02:58.2]} 2. Nf3 {[%clk 0:02:59.3]}
2... d5 {[%clk 0:02:58.7]} 3. g3 {[%clk 0:02:59]} 3... Nf6 {[%clk 0:02:58.2]} 4.
Bg2 {[%clk 0:02:58.6]} 4... Be7 {[%clk 0:02:58]} 5. O-O {[%clk 0:02:58.1]} 5...
O-O {[%clk 0:02:58.2]} 6. b3 {[%clk 0:02:58.3]} 6... c5 {[%clk 0:02:57.4]} 7.
cxd5 {[%clk 0:02:57.9]} 7... Nxd5 {[%clk 0:02:55.5]} 8. Bb2 {[%clk 0:02:56.5]}
8... Nc6 {[%clk 0:02:55.9]} 9. Nc3 {[%clk 0:02:56.3]} 9... Bf6 {[%clk
0:02:56.1]} 10. Qc1 {[%clk 0:02:46.3]} 10... Nxc3 {[%clk 0:02:37.5]} 11. Bxc3
{[%clk 0:02:45.4]} 11... Nd4 {[%clk 0:02:35.6]} 12. Nxd4 {[%clk 0:02:38.3]}
12... cxd4 {[%clk 0:02:32.8]} 13. Bb4 {[%clk 0:02:38]} 13... Re8 {[%clk
0:02:33.1]} 14. d3 {[%clk 0:02:37.3]} 14... Bd7 {[%clk 0:02:30.1]} 15. Qd2
{[%clk 0:02:21.1]} 15... a5 {[%clk 0:02:21.6]} 16. Ba3 {[%clk 0:02:09]} 16...
Qb6 {[%clk 0:02:03]} 17. Rfc1 {[%clk 0:02:05.4]} 17... Rac8 {[%clk 0:02:01.8]}
18. Rxc8 {[%clk 0:02:04.7]} 18... Rxc8 {[%clk 0:02:02.7]} 19. Rc1 {[%clk
0:02:03.7]} 19... Rc3 {[%clk 0:02:00.6]} 20. Bb2 {[%clk 0:01:54.7]} 20... Rxc1+
{[%clk 0:01:59.7]} 21. Qxc1 {[%clk 0:01:54.6]} 21... h5 {[%clk 0:01:46.8]} 22.
h4 {[%clk 0:01:44.5]} 22... a4 {[%clk 0:01:35.3]} 23. Qc4 {[%clk 0:01:34.9]}
23... axb3 {[%clk 0:01:15.2]} 24. Qxb3 {[%clk 0:01:28.4]} 24... Qxb3 {[%clk
0:01:10.9]} 25. axb3 {[%clk 0:01:28.6]} 25... b5 {[%clk 0:01:05.7]} 26. Bf3
{[%clk 0:01:24.7]} 26... g6 {[%clk 0:01:03.1]} 27. e3 {[%clk 0:01:24.5]} 27...
b4 {[%clk 0:00:52.7]} 28. Bxd4 {[%clk 0:01:01.4]} 28... Bxd4 {[%clk 0:00:49.9]}
29. exd4 {[%clk 0:01:01.5]} 29... Kf8 {[%clk 0:00:49.1]} 30. Kf1 {[%clk
0:00:58.5]} 30... Ke7 {[%clk 0:00:47.6]} 31. Ke2 {[%clk 0:00:57.7]} 31... Kd6
{[%clk 0:00:47.7]} 32. Ke3 {[%clk 0:00:57.7]} 32... Be8 {[%clk 0:00:42.2]} 33.
Bb7 {[%clk 0:00:54.9]} 33... f6 {[%clk 0:00:41.6]} 34. Ba6 {[%clk 0:00:51]}
34... Bc6 {[%clk 0:00:35]} 35. Bc4 {[%clk 0:00:50.2]} 35... Bd5 {[%clk
0:00:35.1]} 36. f4 {[%clk 0:00:48.3]} 36... Bb7 {[%clk 0:00:28.4]} 37. Kd2
{[%clk 0:00:46.5]} 37... Bd5 {[%clk 0:00:27.5]} 38. Ke3 {[%clk 0:00:46.7]} 38...
Bc6 {[%clk 0:00:23.8]} 39. Kd2 {[%clk 0:00:42.6]} 39... Ke7 {[%clk 0:00:23]} 40.
Ke3 {[%clk 0:00:42.5]} 40... Bh1 {[%clk 0:00:20.8]} 41. Bb5 {[%clk 0:00:40.8]}
41... Kd6 {[%clk 0:00:19]} 42. Be8 {[%clk 0:00:37.1]} 42... Bd5 {[%clk
0:00:16.5]} 43. Bxg6 {[%clk 0:00:33.1]} 43... Bxb3 {[%clk 0:00:16.3]} 44. Bxh5
{[%clk 0:00:33.3]} 44... Ba4 {[%clk 0:00:12.6]} 45. Bf3 {[%clk 0:00:32.7]} 45...
b3 {[%clk 0:00:11.4]} 46. Kd2 {[%clk 0:00:32.9]} 46... b2 {[%clk 0:00:11.5]} 0-1

[Event "Late-Titled-Tuesday-Blitz-December-26-2023"]
[Site "Chess.com"]
[Date "2023.12.26"]
[Round "1"]
[White "Mikhail_Golubev"]
[Black "Zapateado"]
[Result "1-0"]
[WhiteElo "2632"]
[BlackElo "2334"]
[TimeControl "180+1"]
[EndTime "14:07:31 PST"]
[Termination "Mikhail_Golubev won by resignation"]

1. e4 {[%clk 0:03:00.9]} 1... c5 {[%clk 0:03:00]} 2. Nf3 {[%clk 0:02:59.6]} 2...
g6 {[%clk 0:03:00.5]} 3. d4 {[%clk 0:02:58.6]} 3... cxd4 {[%clk 0:03:01.4]} 4.
Nxd4 {[%clk 0:02:58.7]} 4... Nc6 {[%clk 0:03:01.7]} 5. Nc3 {[%clk 0:02:58]} 5...
Bg7 {[%clk 0:03:01.8]} 6. Be3 {[%clk 0:02:57.9]} 6... Nf6 {[%clk 0:03:02.4]} 7.
Bc4 {[%clk 0:02:56.8]} 7... O-O {[%clk 0:03:03]} 8. Bb3 {[%clk 0:02:56.3]} 8...
a5 {[%clk 0:03:03.5]} 9. O-O {[%clk 0:02:54.8]} 9... d6 {[%clk 0:03:03.9]} 10.
h3 {[%clk 0:02:47.1]} 10... Bd7 {[%clk 0:03:04]} 11. a4 {[%clk 0:02:40.1]} 11...
Nxd4 {[%clk 0:03:03]} 12. Bxd4 {[%clk 0:02:39.7]} 12... Bc6 {[%clk 0:03:03.9]}
13. Re1 {[%clk 0:02:32.4]} 13... Nd7 {[%clk 0:03:02.9]} 14. Bxg7 {[%clk
0:02:25.6]} 14... Kxg7 {[%clk 0:03:03.8]} 15. Qd4+ {[%clk 0:02:25.3]} 15... f6
{[%clk 0:03:02.3]} 16. Bc4 {[%clk 0:02:04.4]} 16... Qb6 {[%clk 0:02:59.4]} 17.
Qd2 {[%clk 0:01:55]} 17... Rac8 {[%clk 0:02:43.7]} 18. Bb5 {[%clk 0:01:46.7]}
18... Bxb5 {[%clk 0:02:28.4]} 19. axb5 {[%clk 0:01:32.7]} 19... Ne5 {[%clk
0:02:21.1]} 20. Nd5 {[%clk 0:01:28]} 20... Qd8 {[%clk 0:01:56.7]} 21. b3 {[%clk
0:01:19.5]} 21... e6 {[%clk 0:01:55.1]} 22. Nf4 {[%clk 0:01:17.6]} 22... Qe7
{[%clk 0:01:54.7]} 23. Rxa5 {[%clk 0:01:11.1]} 23... Rc5 {[%clk 0:01:51.1]} 24.
c4 {[%clk 0:01:03.7]} 24... Rd8 {[%clk 0:01:36.3]} 25. Ra7 {[%clk 0:01:00.4]}
25... g5 {[%clk 0:01:31.3]} 26. Ne2 {[%clk 0:00:53.9]} 26... Rd7 {[%clk
0:01:28.5]} 27. Nd4 {[%clk 0:00:50.4]} 27... Rc8 {[%clk 0:01:24.7]} 28. Raa1
{[%clk 0:00:48]} 28... Kg6 {[%clk 0:01:21.1]} 29. Qe2 {[%clk 0:00:41.1]} 29...
h5 {[%clk 0:01:19.2]} 30. Rad1 {[%clk 0:00:34.5]} 30... g4 {[%clk 0:01:14.2]}
31. f4 {[%clk 0:00:32.2]} 31... gxf3 {[%clk 0:01:11.4]} 32. gxf3 {[%clk
0:00:31.2]} 32... Rg8 {[%clk 0:00:49.9]} 33. Kh2 {[%clk 0:00:26.9]} 33... Kh7
{[%clk 0:00:46.8]} 34. f4 {[%clk 0:00:21.3]} 34... Nf7 {[%clk 0:00:31.7]} 35.
Qxh5+ {[%clk 0:00:17.3]} 35... Nh6 {[%clk 0:00:32]} 36. Rg1 {[%clk 0:00:16.7]}
36... Rdd8 {[%clk 0:00:12]} 37. f5 {[%clk 0:00:16]} 37... Rxg1 {[%clk
0:00:09.9]} 38. Rxg1 {[%clk 0:00:15.2]} 38... exf5 {[%clk 0:00:07.6]} 39. Qg6+
{[%clk 0:00:13.3]} 39... Kh8 {[%clk 0:00:06.8]} 40. Qxh6+ {[%clk 0:00:13.5]}
40... Qh7 {[%clk 0:00:07.7]} 41. Qxf6+ {[%clk 0:00:13.6]} 1-0

[Event "Late-Titled-Tuesday-Blitz-December-26-2023"]
[Site "Chess.com"]
[Date "2023.12.26"]
[Round "1"]
[White "tripledes"]
[Black "robertoalejandro10"]
[Result "0-1"]
[WhiteElo "2208"]
[BlackElo "2554"]
[TimeControl "180+1"]
[EndTime "14:07:31 PST"]
[Termination "robertoalejandro10 won by resignation"]

1. e4 {[%clk 0:03:00.9]} 1... c5 {[%clk 0:02:59]} 2. d4 {[%clk 0:03:00.3]} 2...
cxd4 {[%clk 0:02:57.5]} 3. c3 {[%clk 0:03:00.8]} 3... d3 {[%clk 0:02:57.2]} 4.
c4 {[%clk 0:03:00.7]} 4... Nc6 {[%clk 0:02:57.2]} 5. Bxd3 {[%clk 0:02:59.6]}
5... g6 {[%clk 0:02:57.6]} 6. Nf3 {[%clk 0:02:58.1]} 6... Bg7 {[%clk 0:02:58]}
7. O-O {[%clk 0:02:58.2]} 7... d6 {[%clk 0:02:57.6]} 8. h3 {[%clk 0:02:58.3]}
8... Nf6 {[%clk 0:02:57.4]} 9. Nc3 {[%clk 0:02:58.2]} 9... O-O {[%clk
0:02:57.4]} 10. Bf4 {[%clk 0:02:58.8]} 10... Nd7 {[%clk 0:02:57.7]} 11. Rc1
{[%clk 0:02:58.9]} 11... Nde5 {[%clk 0:02:55.9]} 12. Qe2 {[%clk 0:02:54]} 12...
Nxd3 {[%clk 0:02:52.6]} 13. Qxd3 {[%clk 0:02:54.9]} 13... Be6 {[%clk 0:02:45.9]}
14. b3 {[%clk 0:02:53.8]} 14... Ne5 {[%clk 0:02:33.2]} 15. Qe2 {[%clk
0:02:41.5]} 15... Qa5 {[%clk 0:02:29.6]} 16. Rfd1 {[%clk 0:02:21.3]} 16... Nxf3+
{[%clk 0:02:28.1]} 17. Qxf3 {[%clk 0:02:22.2]} 17... Rac8 {[%clk 0:02:23.3]} 18.
Rd2 {[%clk 0:02:13.1]} 18... a6 {[%clk 0:02:20]} 19. a4 {[%clk 0:01:46.8]} 19...
Qb4 {[%clk 0:02:10.6]} 20. Nd5 {[%clk 0:01:04.6]} 20... Bxd5 {[%clk 0:02:09.3]}
21. Rxd5 {[%clk 0:01:03.6]} 21... Rc5 {[%clk 0:01:40]} 22. Bd2 {[%clk
0:01:01.7]} 22... Qa3 {[%clk 0:01:38.9]} 23. Rxc5 {[%clk 0:00:46.3]} 23... Qxc5
{[%clk 0:01:38.1]} 24. b4 {[%clk 0:00:46]} 24... Qc7 {[%clk 0:01:37.1]} 25. a5
{[%clk 0:00:46.1]} 25... Rc8 {[%clk 0:01:36.6]} 26. Bg5 {[%clk 0:00:42.9]} 26...
h6 {[%clk 0:01:35.3]} 27. Bh4 {[%clk 0:00:42.2]} 27... h5 {[%clk 0:01:32.2]} 28.
Bg5 {[%clk 0:00:41.9]} 28... Qd7 {[%clk 0:01:28]} 29. Qd3 {[%clk 0:00:41.1]}
29... Qe6 {[%clk 0:01:22.4]} 30. Rc2 {[%clk 0:00:39.1]} 30... Bf6 {[%clk
0:01:17.2]} 31. Be3 {[%clk 0:00:38.4]} 31... Qe5 {[%clk 0:01:14.6]} 32. f4
{[%clk 0:00:35.4]} 32... Qa1+ {[%clk 0:01:14.7]} 33. Kh2 {[%clk 0:00:35.8]}
33... Qa4 {[%clk 0:01:14.9]} 34. Bd2 {[%clk 0:00:33.2]} 34... Qc6 {[%clk
0:01:09]} 35. Be3 {[%clk 0:00:32.7]} 35... Qa4 {[%clk 0:01:08.7]} 36. Bd2 {[%clk
0:00:32.7]} 36... Bg7 {[%clk 0:01:09.3]} 37. Bc3 {[%clk 0:00:32.9]} 37... Qb3
{[%clk 0:01:05.9]} 38. c5 {[%clk 0:00:24.6]} 38... dxc5 {[%clk 0:01:01.7]} 39.
Qd7 {[%clk 0:00:24.7]} 39... Rf8 {[%clk 0:00:25.8]} 40. Bxg7 {[%clk 0:00:23.8]}
40... Kxg7 {[%clk 0:00:26.7]} 41. Rxc5 {[%clk 0:00:20.1]} 41... Qxb4 {[%clk
0:00:23.3]} 42. Qxe7 {[%clk 0:00:20.6]} 42... Qd4 {[%clk 0:00:19.5]} 43. f5
{[%clk 0:00:20.9]} 43... Rd8 {[%clk 0:00:12.4]} 44. f6+ {[%clk 0:00:20.5]} 44...
Qxf6 {[%clk 0:00:11.6]} 45. Qxb7 {[%clk 0:00:19.8]} 45... Qd6+ {[%clk
0:00:10.9]} 46. e5 {[%clk 0:00:17.8]} 46... Qxc5 {[%clk 0:00:10.8]} 47. Qxa6
{[%clk 0:00:18.4]} 47... Qxe5+ {[%clk 0:00:10.5]} 48. Kg1 {[%clk 0:00:18.8]}
48... Rd1+ {[%clk 0:00:10.2]} 49. Kf2 {[%clk 0:00:19]} 49... Rd2+ {[%clk
0:00:10.9]} 50. Kg1 {[%clk 0:00:18]} 50... Qe2 {[%clk 0:00:10.3]} 0-1

[Event "Late-Titled-Tuesday-Blitz-December-26-2023"]
[Site "Chess.com"]
[Date "2023.12.26"]
[Round "1"]
[White "Doraemon7"]
[Black "inagreV"]
[Result "0-1"]
[WhiteElo "2683"]
[BlackElo "2415"]
[TimeControl "180+1"]
[EndTime "14:07:35 PST"]
[Termination "inagreV won by resignation"]

1. d4 {[%clk 0:02:40.9]} 1... Nf6 {[%clk 0:02:59.1]} 2. c4 {[%clk 0:02:40.8]}
2... g6 {[%clk 0:02:59.1]} 3. Nc3 {[%clk 0:02:40.1]} 3... Bg7 {[%clk 0:02:59.2]}
4. Nf3 {[%clk 0:02:40.2]} 4... O-O {[%clk 0:02:59.1]} 5. Bg5 {[%clk 0:02:40.9]}
5... d6 {[%clk 0:02:58.8]} 6. e3 {[%clk 0:02:41.3]} 6... Nbd7 {[%clk 0:02:58.9]}
7. Be2 {[%clk 0:02:41.7]} 7... h6 {[%clk 0:02:59]} 8. Bh4 {[%clk 0:02:41.5]}
8... g5 {[%clk 0:02:59.2]} 9. Bg3 {[%clk 0:02:42.2]} 9... Nh5 {[%clk 0:02:59.5]}
10. Qc2 {[%clk 0:02:42.2]} 10... Nxg3 {[%clk 0:02:53.7]} 11. hxg3 {[%clk
0:02:43.1]} 11... f5 {[%clk 0:02:48.4]} 12. g4 {[%clk 0:02:38.2]} 12... fxg4
{[%clk 0:02:29.2]} 13. Nh2 {[%clk 0:01:22.9]} 13... Nf6 {[%clk 0:02:27.5]} 14.
O-O-O {[%clk 0:01:18.6]} 14... a6 {[%clk 0:02:18]} 15. Kb1 {[%clk 0:01:12.8]}
15... c6 {[%clk 0:02:05.1]} 16. e4 {[%clk 0:01:03.4]} 16... b5 {[%clk
0:01:59.5]} 17. e5 {[%clk 0:01:03.3]} 17... Ne8 {[%clk 0:01:59.4]} 18. Bxg4
{[%clk 0:00:58.7]} 18... bxc4 {[%clk 0:01:57.4]} 19. e6 {[%clk 0:00:44.2]} 19...
d5 {[%clk 0:01:28.3]} 20. Nf3 {[%clk 0:00:43.1]} 20... Nf6 {[%clk 0:01:24.1]}
21. Bf5 {[%clk 0:00:43.6]} 21... Qd6 {[%clk 0:01:21.8]} 22. Rde1 {[%clk
0:00:26.9]} 22... Bh8 {[%clk 0:01:10.1]} 23. g4 {[%clk 0:00:18.9]} 23... Qf4
{[%clk 0:01:08.7]} 24. Ne5 {[%clk 0:00:18.9]} 24... c5 {[%clk 0:01:01.8]} 25.
Ne2 {[%clk 0:00:14]} 25... Qxf2 {[%clk 0:00:55.1]} 26. Ref1 {[%clk 0:00:14.6]}
26... Qe3 {[%clk 0:00:54.3]} 27. Rf3 {[%clk 0:00:14.4]} 27... cxd4 {[%clk
0:00:50]} 28. Rxe3 {[%clk 0:00:14.8]} 28... dxe3 {[%clk 0:00:50.1]} 29. Ng6
{[%clk 0:00:15.1]} 29... Bb7 {[%clk 0:00:46.9]} 30. Nxe7+ {[%clk 0:00:14.9]}
30... Kg7 {[%clk 0:00:46.5]} 31. Bh7 {[%clk 0:00:15]} 31... Ne4 {[%clk
0:00:44.8]} 32. Nf5+ {[%clk 0:00:13.2]} 32... Kxh7 {[%clk 0:00:42.4]} 33. e7
{[%clk 0:00:13.8]} 33... Rf6 {[%clk 0:00:41]} 34. Neg3 {[%clk 0:00:14.1]} 34...
Re8 {[%clk 0:00:36]} 35. Re1 {[%clk 0:00:14.2]} 35... Nxg3 {[%clk 0:00:35.4]}
36. Nxg3+ {[%clk 0:00:13.9]} 36... Kg8 {[%clk 0:00:36.3]} 37. Rxe3 {[%clk
0:00:14.4]} 37... d4 {[%clk 0:00:35.9]} 38. Re1 {[%clk 0:00:13.9]} 38... Bd5
{[%clk 0:00:34.3]} 39. Nf5 {[%clk 0:00:13.7]} 39... d3 {[%clk 0:00:31.8]} 40.
Qd2 {[%clk 0:00:14.2]} 40... Rb6 {[%clk 0:00:30.7]} 41. b4 {[%clk 0:00:09.6]}
41... a5 {[%clk 0:00:24.5]} 42. a3 {[%clk 0:00:07.8]} 42... axb4 {[%clk
0:00:24.9]} 43. axb4 {[%clk 0:00:08.6]} 43... Ra6 {[%clk 0:00:18.7]} 44. Nxh6+
{[%clk 0:00:03.7]} 44... Kh7 {[%clk 0:00:17.8]} 45. Re5 {[%clk 0:00:01.5]} 45...
Bxe5 {[%clk 0:00:17.3]} 46. Nf5 {[%clk 0:00:01.9]} 0-1

[Event "Late-Titled-Tuesday-Blitz-December-26-2023"]
[Site "Chess.com"]
[Date "2023.12.26"]
[Round "1"]
[White "MelihKaanCan"]
[Black "SaqoChess_Twitch"]
[Result "1-0"]
[WhiteElo "2370"]
[BlackElo "2633"]
[TimeControl "180+1"]
[EndTime "14:07:38 PST"]
[Termination "MelihKaanCan won by checkmate"]

1. e4 {[%clk 0:03:00.9]} 1... c5 {[%clk 0:02:57.1]} 2. Nf3 {[%clk 0:03:01.2]}
2... d6 {[%clk 0:02:55.8]} 3. Nc3 {[%clk 0:03:00.7]} 3... Nf6 {[%clk 0:02:55.3]}
4. Bb5+ {[%clk 0:02:59.6]} 4... Bd7 {[%clk 0:02:53.6]} 5. Bxd7+ {[%clk
0:02:50.2]} 5... Qxd7 {[%clk 0:02:54.5]} 6. O-O {[%clk 0:02:47.7]} 6... Nc6
{[%clk 0:02:55]} 7. d4 {[%clk 0:02:42.8]} 7... cxd4 {[%clk 0:02:54.8]} 8. Nxd4
{[%clk 0:02:43.7]} 8... g6 {[%clk 0:02:55.1]} 9. Nxc6 {[%clk 0:02:33.1]} 9...
Qxc6 {[%clk 0:02:56]} 10. Bf4 {[%clk 0:02:22.9]} 10... Bg7 {[%clk 0:02:55.9]}
11. Re1 {[%clk 0:02:14.2]} 11... O-O {[%clk 0:02:55.8]} 12. Qd3 {[%clk
0:02:12.2]} 12... Rfd8 {[%clk 0:02:55.3]} 13. Nd5 {[%clk 0:02:08.3]} 13... Nxd5
{[%clk 0:02:48.3]} 14. exd5 {[%clk 0:02:09.2]} 14... Qc7 {[%clk 0:02:48.5]} 15.
c3 {[%clk 0:02:07.5]} 15... Bf6 {[%clk 0:02:44.7]} 16. Re4 {[%clk 0:02:04.2]}
16... b5 {[%clk 0:02:43.8]} 17. Rae1 {[%clk 0:02:03.8]} 17... Rab8 {[%clk
0:02:41.8]} 18. Be3 {[%clk 0:01:51.7]} 18... a5 {[%clk 0:02:39]} 19. Bd4 {[%clk
0:01:51.2]} 19... b4 {[%clk 0:02:33.1]} 20. c4 {[%clk 0:01:42.5]} 20... a4
{[%clk 0:02:26.2]} 21. b3 {[%clk 0:01:42.4]} 21... axb3 {[%clk 0:02:26]} 22.
axb3 {[%clk 0:01:43.3]} 22... Ra8 {[%clk 0:02:26]} 23. h4 {[%clk 0:01:43.5]}
23... h5 {[%clk 0:02:11.1]} 24. Bxf6 {[%clk 0:01:37.7]} 24... exf6 {[%clk
0:02:10.2]} 25. Qd4 {[%clk 0:01:34.9]} 25... Kg7 {[%clk 0:02:09.4]} 26. Rf4
{[%clk 0:01:32.8]} 26... Re8 {[%clk 0:02:07.7]} 27. Qxf6+ {[%clk 0:01:31.1]}
27... Kg8 {[%clk 0:02:07.6]} 28. Rfe4 {[%clk 0:01:29.6]} 28... Qd7 {[%clk
0:01:58.7]} 29. Re7 {[%clk 0:01:25.3]} 29... Rxe7 {[%clk 0:01:43.7]} 30. Rxe7
{[%clk 0:01:26.2]} 30... Qf5 {[%clk 0:01:43.8]} 31. Qxf5 {[%clk 0:01:08.4]}
31... gxf5 {[%clk 0:01:44.7]} 32. Rb7 {[%clk 0:01:08.8]} 32... Ra1+ {[%clk
0:01:32.9]} 33. Kh2 {[%clk 0:01:08.3]} 33... Ra2 {[%clk 0:01:31.1]} 34. f3
{[%clk 0:01:04.4]} 34... Rb2 {[%clk 0:01:30.5]} 35. Rxb4 {[%clk 0:01:04.3]}
35... Kg7 {[%clk 0:01:31.1]} 36. Rb7 {[%clk 0:01:04.5]} 36... Kf6 {[%clk
0:01:30.6]} 37. Kg3 {[%clk 0:01:03.6]} 37... Ke5 {[%clk 0:01:27.9]} 38. b4
{[%clk 0:00:51]} 38... f4+ {[%clk 0:01:27.2]} 39. Kh2 {[%clk 0:00:49.1]} 39...
Kd4 {[%clk 0:01:24.4]} 40. Rxf7 {[%clk 0:00:24.5]} 40... Ke3 {[%clk 0:01:23.6]}
41. c5 {[%clk 0:00:21.1]} 41... Rxb4 {[%clk 0:01:18]} 42. cxd6 {[%clk
0:00:18.7]} 42... Rd4 {[%clk 0:01:18.2]} 43. Rf5 {[%clk 0:00:12.7]} 43... Ra4
{[%clk 0:01:15.9]} 44. d7 {[%clk 0:00:10.1]} 44... Ra8 {[%clk 0:01:16.4]} 45.
Re5+ {[%clk 0:00:10.6]} 45... Kf2 {[%clk 0:01:14.2]} 46. Re8 {[%clk 0:00:11.5]}
46... Ra2 {[%clk 0:01:03.6]} 47. d8=Q {[%clk 0:00:08.3]} 47... Kf1 {[%clk
0:01:04.5]} 48. Rg8 {[%clk 0:00:06.2]} 48... Rf2 {[%clk 0:00:57]} 49. Qd7 {[%clk
0:00:06.1]} 49... Rd2 {[%clk 0:00:55.1]} 50. Qb5+ {[%clk 0:00:06.1]} 50... Kf2
{[%clk 0:00:54.4]} 51. Qc5+ {[%clk 0:00:06.8]} 51... Kf1 {[%clk 0:00:54.4]} 52.
Qc4+ {[%clk 0:00:07.3]} 52... Kf2 {[%clk 0:00:54.3]} 53. Qc3 {[%clk 0:00:07.5]}
53... Re2 {[%clk 0:00:49.5]} 54. Rb8 {[%clk 0:00:07.8]} 54... Kf1 {[%clk
0:00:47.1]} 55. Rb1+ {[%clk 0:00:07.9]} 55... Kf2 {[%clk 0:00:46.9]} 56. Qd4+
{[%clk 0:00:08.1]} 56... Re3 {[%clk 0:00:47.1]} 57. Rb2+ {[%clk 0:00:07.6]}
57... Kf1 {[%clk 0:00:47]} 58. Qd1+ {[%clk 0:00:06.4]} 58... Re1 {[%clk
0:00:46.4]} 59. Qd3+ {[%clk 0:00:07.1]} 59... Re2 {[%clk 0:00:45.3]} 60. Qxe2#
{[%clk 0:00:07.2]} 1-0